fUSD/lending_fUSD_20240517
["ID","MTS","AMOUNT","RATE_DAILY","PERIOD"]
[327289664,1715967032293,-169.616618,0.00012311,2]
[327289666,1715967032303,-2586.880595,0.00012311,2]
[327289668,1715967032312,-154.757108,0.00012311,2]
[327289670,1715967032321,-4895.0,0.00012328,2]
[327289672,1715967032331,-1564.36069654,0.0001234,2]
[327289674,1715967032340,-583.498302,0.00012465,2]
[327289676,1715967032352,-2586.880595,0.00012465,2]
[327289678,1715967032361,-1253.161162,0.00012465,2]
[327289680,1715967032370,-583.498303,0.00012465,2]
[327289682,1715967032382,-2586.880595,0.00012465,2]
[327289684,1715967032392,-1204.0,0.000125,2]
[327289686,1715967032403,-5997.69574994,0.00012544,2]
[327289688,1715967032412,-2113.14809475,0.000126,2]
[327289690,1715967032420,-583.498302,0.00012619,2]
[327289691,1715967032430,-2586.880595,0.00012619,2]
[327289692,1715967032438,-1253.161162,0.00012619,2]
[327289693,1715967032448,-583.498303,0.00012619,2]
[327289694,1715967032457,-2586.880595,0.00012619,2]
[327289695,1715967032467,-2113.14809469,0.00012633,2]
[327289696,1715967032476,-2113.14809469,0.00012667,2]
[327289697,1715967032486,-487.00404975,0.00012672,2]
[327289698,1715967032495,-43942.00905761,0.0001268,2]
[327289699,1715967032505,-500.0,0.00012686,2]
[327289700,1715967032515,-200.0,0.00012697,2]
[327289701,1715967032524,-1000.0,0.00012697,2]
[327289702,1715967032535,-200.0,0.00012697,2]
[327289703,1715967032544,-500.0,0.00012697,2]
[327289704,1715967032554,-200.0,0.00012697,2]
[327289705,1715967032564,-200.0,0.00012698,2]
[327289706,1715967032573,-200.0,0.00012698,2]
[327289707,1715967032583,-1000.0,0.00012698,2]
[327289708,1715967032592,-1000.0,0.00012698,2]
[327289709,1715967032601,-500.0,0.00012698,2]
[327289710,1715967032611,-500.0,0.00012698,2]
[327289711,1715967032620,-1000.0,0.00012698,2]
[327289712,1715967032630,-2500.0,0.00012698,2]
[327289713,1715967032640,-18105.1714,0.000127,2]
[327289714,1715967032649,-31680.4369,0.000127,2]
[327289715,1715967032661,-178.95449282,0.000127,2]
[327289716,1715967032671,-171.52880002,0.000127,2]
[327289717,1715967032681,-3039.81687412,0.000127,2]
[327289718,1715967032691,-200.01599054,0.000127,2]
[327289719,1715967032700,-179.85424468,0.000127,2]
[327289720,1715967032710,-2113.14809469,0.000127,2]
[327289721,1715967032721,-1279.11089136,0.000127,2]
[327289722,1715967032733,-511.44490349,0.000127,2]
[327289723,1715967032743,-3039.81687412,0.00012718,2]
[327289724,1715967032753,-2113.14809469,0.00012733,2]
[327289725,1715967032763,-3039.81687412,0.00012736,2]
[327289726,1715967032773,-240.62376422,0.00012749,2]
[327289727,1715967032783,-3039.81687412,0.00012755,2]
[327289728,1715967032793,-2113.14809469,0.00012767,2]
[327289729,1715967032804,-583.498302,0.00012772,2]
[327289730,1715967032814,-2586.880595,0.00012772,2]
[327289731,1715967032824,-1253.161162,0.00012772,2]
[327289732,1715967032833,-583.498303,0.00012772,2]
[327289733,1715967032843,-2586.880595,0.00012772,2]
[327289734,1715967032852,-3039.81687412,0.00012773,2]
[327289735,1715967032861,-240.62376422,0.00012774,2]
[327289736,1715967032871,-830.4,0.00012786,2]
[327289737,1715967032881,-869.2,0.00012786,2]
[327289738,1715967032890,-164.34,0.0001279,2]
[327289739,1715967032900,-3039.81687412,0.00012791,2]
[327289740,1715967032914,-500.0,0.00012796,2]
[327289741,1715967032924,-500.0,0.00012796,2]
[327289742,1715967032934,-500.0,0.00012796,2]
[327289743,1715967032943,-340.4023861,0.00012797,2]
[327289744,1715967032951,-362.95076488,0.00012797,2]
[327289745,1715967032962,-305.41,0.00012797,2]
[327289746,1715967032970,-247.15,0.00012797,2]
[327289747,1715967032979,-259.73,0.00012797,2]
[327289748,1715967032989,-500.0,0.00012797,2]
[327289749,1715967032998,-237.16559782,0.00012797,2]
[327289750,1715967033007,-587.67337585,0.00012797,2]
[327289751,1715967033016,-500.0,0.00012797,2]
[327289752,1715967033025,-500.0,0.00012797,2]
[327289753,1715967033035,-43292.27802188,0.00012798,2]
[327289754,1715967033044,-204.59618356,0.00012798,2]
[327289755,1715967033053,-295.08571311,0.00012798,2]
[327289756,1715967033062,-201.87192028,0.00012798,2]
[327289757,1715967033071,-500.0,0.00012798,2]
[327289758,1715967033080,-403.53742352,0.00012798,2]
[327289759,1715967033088,-500.0,0.00012798,2]
[327289760,1715967033097,-500.0,0.00012798,2]
[327289761,1715967033106,-449.37000001,0.00012798,2]
[327289762,1715967033115,-500.0,0.00012798,2]
[327289763,1715967033124,-500.0,0.00012798,2]
[327289764,1715967033134,-500.0,0.00012798,2]
[327289765,1715967033143,-500.0,0.00012798,2]
[327289766,1715967033152,-500.0,0.00012798,2]
[327289767,1715967033162,-500.0,0.00012798,2]
[327289768,1715967033171,-631.94791534,0.00012798,2]
[327289769,1715967033181,-500.0,0.00012798,2]
[327289770,1715967033190,-500.0,0.00012798,2]
[327289771,1715967033199,-500.0,0.00012798,2]
[327289772,1715967033210,-500.0,0.00012798,2]
[327289773,1715967033220,-500.0,0.00012798,2]
[327289774,1715967033230,-500.0,0.00012798,2]
[327289775,1715967033241,-500.0,0.00012798,2]
[327289776,1715967033252,-500.0,0.00012798,2]
[327289777,1715967033261,-500.0,0.00012798,2]
[327289778,1715967033272,-500.0,0.00012798,2]
[327289779,1715967033282,-500.0,0.00012798,2]
[327289780,1715967033293,-500.0,0.00012798,2]
[327289781,1715967033302,-407.2,0.00012798,2]
[327289782,1715967033312,-500.0,0.00012798,2]
[327289783,1715967033321,-500.0,0.00012798,2]
[327289784,1715967033331,-500.0,0.00012798,2]
[327289785,1715967033340,-500.0,0.00012798,2]
[327289786,1715967033350,-500.0,0.00012798,2]
[327289787,1715967033360,-500.0,0.00012798,2]
[327289788,1715967033369,-647.24,0.00012798,2]
[327289789,1715967033378,-500.0,0.00012798,2]
[327289790,1715967033388,-500.0,0.00012798,2]
[327289791,1715967033398,-166.9435463,0.00012798,2]
[327289792,1715967033410,-500.0,0.00012798,2]
[327289793,1715967033420,-500.0,0.00012798,2]
[327289794,1715967033429,-500.0,0.00012798,2]
[327289795,1715967033439,-500.0,0.00012798,2]
[327289796,1715967033448,-500.0,0.00012799,2]
[327289797,1715967033457,-214.74331389,0.00012799,2]
[327289798,1715967033467,-500.0,0.00012799,2]
[327289799,1715967033476,-170.03568554,0.00012799,2]
[327289800,1715967033486,-500.0,0.00012799,2]
[327289801,1715967033495,-570.64,0.00012799,2]
[327289802,1715967033504,-5867.46418463,0.00012799,2]
[327289803,1715967033514,-584.69,0.00012799,2]
[327289804,1715967033523,-500.0,0.00012799,2]
[327289805,1715967033532,-500.0,0.00012799,2]
[327289806,1715967033542,-500.0,0.00012799,2]
[327289807,1715967033551,-500.0,0.00012799,2]
[327289808,1715967033561,-500.0,0.00012799,2]
[327289809,1715967033570,-500.0,0.00012799,2]
[327289810,1715967033580,-500.0,0.00012799,2]
[327289811,1715967033589,-500.0,0.00012799,2]
[327289812,1715967033598,-376.19,0.00012799,2]
[327289813,1715967033609,-500.0,0.00012799,2]
[327289814,1715967033618,-150.0,0.00012799,2]
[327289815,1715967033627,-500.0,0.00012799,2]
[327289816,1715967033636,-500.0,0.00012799,2]
[327289817,1715967033646,-500.0,0.00012799,2]
[327289818,1715967033656,-500.0,0.00012799,2]
[327289819,1715967033665,-500.0,0.00012799,2]
[327289820,1715967033674,-529.51,0.00012799,2]
[327289821,1715967033683,-500.0,0.00012799,2]
[327289822,1715967033693,-500.0,0.00012799,2]
[327289823,1715967033702,-500.0,0.00012799,2]
[327289824,1715967033904,-500.0,0.00012799,2]
[327289825,1715967033914,-500.0,0.00012799,2]
[327289826,1715967033923,-500.0,0.00012799,2]
[327289827,1715967033933,-500.0,0.00012799,2]
[327289828,1715967033942,-546.0,0.00012799,2]
[327289829,1715967033951,-500.0,0.00012799,2]
[327289830,1715967033961,-500.0,0.00012799,2]
[327289831,1715967033970,-444.81,0.00012799,2]
[327289832,1715967033980,-500.0,0.00012799,2]
[327289833,1715967033989,-538.41,0.00012799,2]
[327289834,1715967033999,-436.97,0.00012799,2]
[327289835,1715967034008,-500.0,0.00012799,2]
[327289836,1715967034017,-500.0,0.00012799,2]
[327289837,1715967034027,-760.5,0.00012799,2]
[327289838,1715967034037,-760.5,0.00012799,2]
[327289839,1715967034046,-760.5,0.00012799,2]
[327289840,1715967034056,-760.5,0.00012799,2]
[327289841,1715967034065,-760.5,0.00012799,2]
[327289842,1715967034075,-760.5,0.00012799,2]
[327289843,1715967034084,-500.0,0.00012799,2]
[327289844,1715967034093,-760.5,0.00012799,2]
[327289845,1715967034103,-760.5,0.00012799,2]
[327289846,1715967034112,-760.5,0.00012799,2]
[327289847,1715967034121,-594.16693893,0.00012799,2]
[327289848,1715967034136,-166.33306107,0.00012799,2]
[327289849,1715967034145,-760.5,0.00012799,2]
[327289850,1715967034156,-760.5,0.00012799,2]
[327289851,1715967034165,-760.5,0.00012799,2]
[327289852,1715967034174,-760.5,0.00012799,2]
[327289853,1715967034183,-760.5,0.00012799,2]
[327289854,1715967034193,-760.5,0.00012799,2]
[327289855,1715967034203,-760.5,0.00012799,2]
[327289856,1715967034212,-760.5,0.00012799,2]
[327289857,1715967034221,-760.5,0.00012799,2]
[327289858,1715967034231,-760.5,0.00012799,2]
[327289859,1715967034240,-760.5,0.00012799,2]
[327289860,1715967034249,-760.5,0.00012799,2]
[327289861,1715967034258,-760.5,0.00012799,2]
[327289862,1715967034268,-760.63378512,0.00012799,2]
[327289863,1715967034278,-500.0,0.00012799,2]
[327289864,1715967034288,-529.0409197,0.00012799,2]
[327289865,1715967034298,-500.0,0.00012799,2]
[327289866,1715967034307,-500.0,0.00012799,2]
[327289867,1715967034316,-192.79117258,0.00012799,2]
[327289868,1715967034325,-190.37702267,0.00012799,2]
[327289869,1715967034335,-500.0,0.00012799,2]
[327289870,1715967034344,-503.72440295,0.00012799,2]
[327289871,1715967034354,-500.0,0.00012799,2]
[327289872,1715967034363,-500.0,0.00012799,2]
[327289873,1715967034373,-500.0,0.00012799,2]
[327289874,1715967034382,-500.0,0.00012799,2]
[327289875,1715967034392,-501.44900502,0.00012799,2]
[327289876,1715967034401,-500.0,0.00012799,2]
[327289877,1715967034412,-500.0,0.00012799,2]
[327289878,1715967034421,-598.9119474,0.00012799,2]
[327289879,1715967034431,-388.07931118,0.00012799,2]
[327289880,1715967034460,-111.92068882,0.00012799,2]
[327289881,1715967034470,-500.0,0.00012799,2]
[327289882,1715967034479,-14.93122159,0.00012799,2]
[327289883,1715967034491,-485.06877841,0.00012799,2]
[327289884,1715967034501,-500.0,0.00012799,2]
[327289885,1715967034511,-500.0,0.00012799,2]
[327289886,1715967034520,-586.76,0.00012799,2]
[327289887,1715967034530,-500.0,0.00012799,2]
[327289888,1715967034540,-216.01,0.00012799,2]
[327289889,1715967034549,-309.16,0.00012799,2]
[327289890,1715967034559,-500.0,0.00012799,2]
[327289891,1715967034569,-500.0,0.00012799,2]
[327289892,1715967034579,-500.0,0.00012799,2]
[327289893,1715967034589,-500.0,0.00012799,2]
[327289894,1715967034598,-500.0,0.00012799,2]
[327289895,1715967034608,-500.0,0.00012799,2]
[327289896,1715967034618,-500.0,0.00012799,2]
[327289897,1715967034627,-500.0,0.00012799,2]
[327289898,1715967034637,-500.0,0.00012799,2]
[327289899,1715967034647,-500.0,0.00012799,2]
[327289900,1715967034657,-225.88,0.00012799,2]
[327289901,1715967034667,-500.0,0.00012799,2]
[327289902,1715967034676,-500.0,0.00012799,2]
[327289903,1715967034686,-500.0,0.00012799,2]
[327289904,1715967034696,-500.0,0.00012799,2]
[327289905,1715967034706,-500.0,0.00012799,2]
[327289906,1715967034715,-500.0,0.00012799,2]
[327289907,1715967034729,-500.0,0.00012799,2]
[327289908,1715967034738,-500.0,0.00012799,2]
[327289909,1715967034748,-500.0,0.00012799,2]
[327289910,1715967034757,-500.0,0.00012799,2]
[327289911,1715967034769,-283.00000881,0.00012799,2]
[327289912,1715967034778,-318.19,0.00012799,2]
[327289913,1715967034788,-500.0,0.00012799,2]
[327289914,1715967034797,-500.0,0.00012799,2]
[327289915,1715967034808,-630.47,0.00012799,2]
[327289916,1715967034818,-500.0,0.00012799,2]
[327289917,1715967034828,-629.39,0.00012799,2]
[327289918,1715967034837,-500.0,0.00012799,2]
[327289919,1715967034846,-500.0,0.00012799,2]
[327289920,1715967034856,-500.0,0.00012799,2]
[327289921,1715967034865,-500.0,0.00012799,2]
[327289922,1715967034874,-500.0,0.00012799,2]
[327289923,1715967034883,-500.0,0.00012799,2]
[327289924,1715967034892,-500.0,0.00012799,2]
[327289925,1715967034904,-500.0,0.00012799,2]
[327289926,1715967034914,-500.0,0.00012799,2]
[327289927,1715967034923,-500.0,0.00012799,2]
[327289928,1715967034933,-500.0,0.00012799,2]
[327289929,1715967034942,-500.0,0.00012799,2]
[327289930,1715967034952,-500.0,0.00012799,2]
[327289931,1715967034961,-500.0,0.00012799,2]
[327289932,1715967034971,-254.38447975,0.00012799,2]
[327289933,1715967034980,-309.11,0.00012799,2]
[327289934,1715967034990,-248.7,0.00012799,2]
[327289935,1715967035000,-240.62376422,0.00012799,2]
[327289936,1715967035009,-269052.67838472,0.000128,2]
[327289937,1715967035041,-5766.96427622,0.000128,2]
[327289938,1715967035055,-35461.81295496,0.000128,2]
[327289939,1715967035067,-6481.68123966,0.000128,2]
[327289940,1715967035079,-1997.4276,0.000128,2]
[327289941,1715967035091,-1042.16772,0.000128,2]
[327289942,1715967035102,-1309.51,0.000128,2]
[327289943,1715967035113,-1486.7837916,0.000128,2]
[327289980,1715967038047,-500.0,0.00012797,2]
[327289982,1715967038057,-125308.66655429,0.000128,2]
[327289984,1715967038069,-458.9343705,0.000128,2]
[327289986,1715967038081,-3564.900492,0.000128,2]
[327289988,1715967038092,-500.0,0.000128,2]
[327289995,1715967038154,-2366.80257171,0.000128,2]
[327289997,1715967038167,-308.66866659,0.000128,2]
[327290000,1715967038178,-669.46,0.000128,2]
[327290001,1715967038190,-3389.96530916,0.000128,2]
[327290002,1715967038201,-818.49731349,0.000128,2]
[327290003,1715967038212,-535.72111164,0.000128,2]
[327290004,1715967038248,-1490.57962637,0.000128,2]
[327290005,1715967038350,-714.662132,0.000128,2]
[327290114,1715967040173,-3220.47496843,0.000128,2]
[327290116,1715967040186,-1098.90001,0.000128,2]
[327290361,1715967042650,-1146.51699869,0.000128,2]
[327290372,1715967042756,-3268.0669238,0.000128,2]
[327290426,1715967043254,-219037.46141629,0.000128,2]
[327290428,1715967043264,-2858489.88473146,0.000128,2]
[327290430,1715967043276,-430.88089482,0.000128,2]
[327290432,1715967043287,-3911.35240164,0.000128,2]
[327290435,1715967043298,-1826.58478105,0.000128,2]
[327290437,1715967043309,-1675.61473,0.000128,2]
[327290439,1715967043320,-3108.2114,0.000128,2]
[327290620,1715967045914,-370.45,0.00010021,2]
[327290621,1715967045926,-370.45,0.00012285,2]
[327290622,1715967045935,-204.80318837,0.00012799,2]
[327290623,1715967045944,-56920.90165234,0.000128,2]
[327290624,1715967046037,-870.87270145,0.000128,2]
[327290625,1715967046050,-30640.62146399,0.000128,2]
[327290626,1715967046147,-29775.32057,0.000128,2]
[327290691,1715967587261,-281.78392074,9.76e-05,2]
[327290692,1715967613449,-333.4,9.761e-05,2]
[327290694,1715967749461,554.15482141,0.0002,30]
[327290695,1715967795329,800.0,0.000235,120]
[327290701,1715968032865,316.73,9.759e-05,2]
[327290706,1715968048757,-281.78392074,0.00011653,2]
[327290707,1715968048782,-1000.0,0.00011653,2]
[327290708,1715968048804,-250.0,0.00011654,2]
[327290709,1715968048825,-2468.21607926,0.00011656,2]
[327290710,1715968049197,-4000.0,0.00011656,2]
[327290711,1715968049684,-4000.0,0.00011656,2]
[327290715,1715968051603,-119.02392074,0.00011656,2]
[327290718,1715968102005,-298.8045289,0.00011656,2]
[327290719,1715968102028,-3701.1954711,0.00011656,2]
[327290720,1715968102474,-4000.0,0.00011656,2]
[327290721,1715968102995,-4000.0,0.00011656,2]
[327290722,1715968103500,-4000.0,0.00011656,2]
[327290723,1715968104169,-4000.0,0.00011656,2]
[327290724,1715968104879,-1570.329356,0.00011597,2]
[327290725,1715968104901,-2429.670644,0.00011656,2]
[327290726,1715968105165,-4000.0,0.00011656,2]
[327290727,1715968105921,-4000.0,0.00011656,2]
[327290728,1715968106598,-4000.0,0.00011656,2]
[327290729,1715968107138,-4000.0,0.00011656,2]
[327290730,1715968108170,-4000.0,0.00011656,2]
[327290731,1715968108727,-4000.0,0.00011656,2]
[327290732,1715968109315,-4000.0,0.00011656,2]
[327290733,1715968109891,-4000.0,0.00011656,2]
[327290734,1715968110437,-4000.0,0.00011656,2]
[327290735,1715968111020,-4000.0,0.00011656,2]
[327290736,1715968111607,-4000.0,0.00011656,2]
[327290737,1715968112330,-4000.0,0.00011656,2]
[327290738,1715968112777,-4000.0,0.00011656,2]
[327290739,1715968113359,-4000.0,0.00011656,2]
[327290765,1715968204333,-3301.38258642,0.00011073,2]
[327290766,1715968204354,-250.0,0.00011596,2]
[327290767,1715968204374,-281.78392074,0.00011653,2]
[327290768,1715968204395,-155.0,0.00011654,2]
[327290769,1715968204417,-11.83349284,0.00011655,2]
[327290770,1715968205953,-192.96969553,0.00011655,2]
[327290771,1715968205975,-3807.03030447,0.00011656,2]
[327290773,1715968206563,-4000.0,0.00011656,2]
[327290774,1715968207171,-4000.0,0.00011656,2]
[327290775,1715968207750,-4000.0,0.00011656,2]
[327290776,1715968208568,-4000.0,0.00011656,2]
[327290778,1715968209229,-4000.0,0.00011656,2]
[327290779,1715968209814,-4000.0,0.00011656,2]
[327290780,1715968210361,-4000.0,0.00011656,2]
[327290781,1715968210929,-4000.0,0.00011656,2]
[327290789,1715968232243,-1834.1014369,0.00011073,2]
[327290790,1715968232252,-1873.71323779,0.00011656,2]
[327290791,1715968232371,-20837.54427584,0.00011656,2]
[327290792,1715968232383,-5136.602543,0.00011656,2]
[327290810,1715968233015,-1300.08001397,0.00011656,2]
[327290811,1715968233026,-654.22,0.00011656,2]
[327290812,1715968233039,-463.7839458,0.00011656,2]
[327290819,1715968238262,-5272.68896387,0.00011072,2]
[327290822,1715968238273,-20135.54631396,0.00011656,2]
[327290825,1715968238282,-350.93755635,0.00011656,2]
[327290828,1715968238291,-322.50525056,0.00011656,2]
[327290831,1715968238300,-155.0,0.00011656,2]
[327290832,1715968238309,-7516.64268761,0.00011656,2]
[327290833,1715968238318,-1112.78,0.0001167,2]
[327290835,1715968238327,-800.0,0.000117,2]
[327290837,1715968238336,-300.0,0.000119,4]
[327290839,1715968238345,-600.0,0.00012,4]
[327290840,1715968238354,-316.73,0.00012023,2]
[327290841,1715968238364,-900.0,0.000121,4]
[327290842,1715968238372,-1003.84354145,0.00012158,2]
[327290843,1715968238381,-1200.0,0.000122,4]
[327290844,1715968238391,-685.44202007,0.000122,2]
[327290845,1715968238400,-10000.0,0.000122,2]
[327290846,1715968238409,-150.0,0.00012274,2]
[327290847,1715968238419,-1500.0,0.000123,4]
[327290848,1715968238429,-150.270517,0.00012311,2]
[327290849,1715968238438,-210.552651,0.00012311,2]
[327290850,1715968238448,-296.735648,0.00012311,2]
[327290851,1715968238460,-235.911288,0.00012311,2]
[327290852,1715968238472,-162.816815,0.00012311,2]
[327290853,1715968238481,-183.502474,0.00012311,2]
[327290854,1715968238492,-181.571212,0.00012311,2]
[327290855,1715968238503,-404.44,0.00012363,2]
[327290856,1715968238512,-300.0,0.000124,4]
[327290857,1715968238523,-1564.36069654,0.00012455,2]
[327290858,1715968238532,-210.552651,0.00012465,2]
[327290859,1715968238542,-300.0,0.000125,4]
[327290860,1715968238552,-150.0,0.00012509,2]
[327290861,1715968238562,-152.78,0.0001251,2]
[327290862,1715968238572,-328.06,0.0001251,2]
[327290863,1715968238583,-840.77,0.0001251,2]
[327290864,1715968238592,-150.0,0.0001251,2]
[327290865,1715968238604,-351.62,0.0001251,2]
[327290866,1715968238614,-150.0,0.0001251,2]
[327290867,1715968238624,-523.76,0.0001251,2]
[327290868,1715968238635,-351.62,0.0001251,2]
[327290870,1715968238644,-150.0,0.0001251,2]
[327290872,1715968238654,-150.0,0.0001251,2]
[327290873,1715968238663,-351.62,0.0001251,2]
[327290874,1715968238672,-270.22,0.0001251,2]
[327290876,1715968238682,-150.0,0.0001251,2]
[327290878,1715968238691,-150.270517,0.00012516,2]
[327290880,1715968238700,-1118.0039,0.000126,2]
[327290882,1715968238709,-300.0,0.000126,4]
[327290884,1715968238719,-210.552651,0.00012619,2]
[327290885,1715968238728,-389.6032398,0.00012672,2]
[327290887,1715968238737,-401.6954,0.00012673,2]
[327290889,1715968238746,-233.70326623,0.00012687,2]
[327290891,1715968238755,-6109.2715,0.00012697,2]
[327290893,1715968238764,-200.0,0.00012698,2]
[327290895,1715968238773,-1000.0,0.00012698,2]
[327290897,1715968238783,-500.0,0.00012698,2]
[327290899,1715968238792,-7500.0,0.00012699,2]
[327290901,1715968238802,-845.25923793,0.00012699,2]
[327290903,1715968238811,-179.85424468,0.00012699,2]
[327290905,1715968238820,-180.64916905,0.000127,2]
[327290907,1715968238829,-3428.22771215,0.000127,2]
[327290909,1715968238839,-300.0,0.000127,4]
[327290911,1715968238848,-852.74059424,0.000127,2]
[327290913,1715968238857,-233.70326623,0.00012711,2]
[327290915,1715968238867,-3428.2277121,0.00012718,2]
[327290917,1715968238876,-150.270517,0.00012721,2]
[327290919,1715968238885,-845.25923787,0.00012721,2]
[327290921,1715968238895,-4895.0,0.00012722,2]
[327290923,1715968238904,-233.70326623,0.00012734,2]
[327290925,1715968238913,-3428.2277121,0.00012736,2]
[327290927,1715968238922,-845.25923787,0.00012744,2]
[327290929,1715968238933,-3428.2277121,0.00012755,2]
[327290931,1715968238943,-233.70326623,0.00012758,2]
[327290933,1715968238952,-845.25923787,0.00012766,2]
[327290935,1715968238962,-210.552651,0.00012772,2]
[327290937,1715968238971,-3428.2277121,0.00012773,2]
[327290939,1715968238980,-36913.402595,0.00012773,2]
[327290941,1715968238990,-233.70326623,0.00012782,2]
[327290943,1715968238999,-161.5,0.00012783,2]
[327290945,1715968239008,-4589.16668298,0.00012786,2]
[327290947,1715968239018,-845.25923787,0.00012788,2]
[327290949,1715968239027,-3428.2277121,0.00012791,2]
[327290951,1715968239037,-500.0,0.00012792,2]
[327290953,1715968239046,-500.0,0.00012792,2]
[327290955,1715968239056,-4858.7457962,0.00012793,2]
[327290957,1715968239065,-67653.4052702,0.00012793,2]
[327290959,1715968239075,-500.0,0.00012796,2]
[327290961,1715968239085,-500.0,0.00012796,2]
[327290963,1715968239096,-468.54644668,0.00012796,2]
[327290965,1715968239109,-500.0,0.00012796,2]
[327290967,1715968239118,-500.0,0.00012797,2]
[327290969,1715968239128,-500.0,0.00012797,2]
[327290971,1715968239138,-500.0,0.00012797,2]
[327290973,1715968239148,-500.0,0.00012797,2]
[327290975,1715968239157,-470.89482384,0.00012797,2]
[327290977,1715968239166,-500.0,0.00012797,2]
[327290979,1715968239177,-57771.34000446,0.00012797,2]
[327290981,1715968239187,-500.0,0.00012797,2]
[327290983,1715968239198,-249.64745924,0.00012797,2]
[327290985,1715968239207,-192.96649003,0.00012797,2]
[327290986,1715968239216,-154.33722222,0.00012797,2]
[327290988,1715968239225,-500.0,0.00012797,2]
[327290990,1715968239234,-406.01239291,0.00012797,2]
[327290992,1715968239243,-500.0,0.00012797,2]
[327290994,1715968239252,-500.0,0.00012797,2]
[327290996,1715968239262,-500.0,0.00012797,2]
[327290998,1715968239271,-345.98,0.00012797,2]
[327291000,1715968239280,-500.0,0.00012797,2]
[327291002,1715968239290,-500.0,0.00012797,2]
[327291004,1715968239299,-500.0,0.00012797,2]
[327291006,1715968239309,-227.19078124,0.00012797,2]
[327291008,1715968239318,-500.0,0.00012797,2]
[327291010,1715968239327,-500.0,0.00012797,2]
[327291012,1715968239337,-263.13,0.00012797,2]
[327291014,1715968239346,-500.0,0.00012797,2]
[327291016,1715968239355,-501.49483368,0.00012797,2]
[327291018,1715968239364,-500.0,0.00012797,2]
[327291020,1715968239372,-500.0,0.00012797,2]
[327291022,1715968239382,-500.0,0.00012797,2]
[327291024,1715968239391,-384.89,0.00012797,2]
[327291026,1715968239400,-376.68,0.00012797,2]
[327291028,1715968239409,-500.0,0.00012797,2]
[327291030,1715968239419,-328.48023682,0.00012797,2]
[327291032,1715968239430,-500.0,0.00012797,2]
[327291034,1715968239439,-364.37212277,0.00012797,2]
[327291036,1715968239448,-500.0,0.00012797,2]
[327291038,1715968239457,-500.0,0.00012797,2]
[327291040,1715968239467,-500.0,0.00012797,2]
[327291041,1715968239476,-535.98,0.00012797,2]
[327291042,1715968239485,-553.64449233,0.00012797,2]
[327291043,1715968239494,-500.0,0.00012797,2]
[327291044,1715968239503,-543.8904758,0.00012797,2]
[327291045,1715968239512,-500.0,0.00012797,2]
[327291046,1715968239521,-500.0,0.00012797,2]
[327291047,1715968239529,-500.0,0.00012797,2]
[327291048,1715968239538,-500.0,0.00012797,2]
[327291049,1715968239547,-500.0,0.00012797,2]
[327291050,1715968239557,-500.0,0.00012797,2]
[327291051,1715968239566,-500.0,0.00012797,2]
[327291052,1715968239575,-500.0,0.00012797,2]
[327291053,1715968239584,-500.0,0.00012797,2]
[327291054,1715968239593,-500.0,0.00012797,2]
[327291055,1715968239603,-500.0,0.00012797,2]
[327291056,1715968239612,-508.48077858,0.00012797,2]
[327291057,1715968239620,-607.10162436,0.00012797,2]
[327291058,1715968239629,-500.0,0.00012797,2]
[327291059,1715968239639,-500.0,0.00012797,2]